fUSD/lending_fUSD_20240919
["ID","MTS","AMOUNT","RATE_DAILY","PERIOD"]
[338529618,1726721385077,-210.981478,0.00012999,2]
[338529619,1726721385098,-2550.56,0.00012999,2]
[338529620,1726721385118,-1268.13,0.00012999,2]
[338529621,1726721385140,-1988.95,0.00012999,2]
[338529622,1726721385163,-210.981478,0.00012999,2]
[338529623,1726721385185,-210.981478,0.00012999,2]
[338529624,1726721385206,-210.981478,0.00012999,2]
[338529625,1726721385227,-2973.05,0.00012999,2]
[338529626,1726721385248,-210.981478,0.00012999,2]
[338529627,1726721385269,-1758.32,0.00012999,2]
[338529628,1726721385290,-151.0,0.00012999,2]
[338529629,1726721385310,-151.0,0.00012999,2]
[338529630,1726721385332,-151.0,0.00012999,2]
[338529631,1726721385354,-151.0,0.00012999,2]
[338529632,1726721385375,-220.61793,0.00012999,2]
[338529633,1726721385397,-151.0,0.00012999,2]
[338529634,1726721385420,-151.0,0.00012999,2]
[338529635,1726721385444,-200.0,0.00012999,2]
[338529636,1726721385466,-237.09386,0.00012999,2]
[338529637,1726721385488,-500.0,0.00012999,2]
[338529638,1726721385510,-1591.9,0.00012999,2]
[338529639,1726721385531,-513.53,0.00012999,2]
[338529640,1726721385551,-2784.12,0.00012999,2]
[338529641,1726721385573,-1092.38,0.00012999,2]
[338529642,1726721385594,-3145.68,0.00012999,2]
[338529643,1726721385616,-545.73,0.00012999,2]
[338529644,1726721385638,-500.0,0.00012999,2]
[338529645,1726721385660,-151.0,0.00012999,2]
[338529646,1726721385682,-151.0,0.00012999,2]
[338529647,1726721385705,-151.0,0.00012999,2]
[338529648,1726721385726,-151.0,0.00012999,2]
[338529649,1726721385751,-697.02,0.00012999,2]
[338529650,1726721385772,-571.98,0.00012999,2]
[338529651,1726721385794,-151.0,0.00012999,2]
[338529652,1726721385818,-500.0,0.00012999,2]
[338529653,1726721385843,-151.0,0.00012999,2]
[338529654,1726721385866,-151.0,0.00012999,2]
[338529655,1726721385888,-151.0,0.00012999,2]
[338529656,1726721385911,-151.0,0.00012999,2]
[338529657,1726721385933,-383.960094,0.00012999,2]
[338529658,1726721385955,-151.0,0.00012999,2]
[338529659,1726721385977,-383.960094,0.00012999,2]
[338529660,1726721386000,-1420.83,0.00012999,2]
[338529661,1726721386022,-158.043124,0.00012999,2]
[338529662,1726721386045,-383.960094,0.00012999,2]
[338529663,1726721386066,-383.960094,0.00012999,2]
[338529664,1726721386089,-966.62,0.00012999,2]
[338529665,1726721386110,-2282.0,0.00012999,2]
[338529666,1726721386132,-383.960094,0.00012999,2]
[338529667,1726721386154,-151.249093,0.00012999,2]
[338529668,1726721386175,-383.960094,0.00012999,2]
[338529669,1726721386196,-383.960094,0.00012999,2]
[338529670,1726721386217,-383.960094,0.00012999,2]
[338529671,1726721386241,-500.0,0.00012999,2]
[338529672,1726721386262,-1429.48,0.00012999,2]
[338529673,1726721386286,-1036.68,0.00012999,2]
[338529674,1726721386310,-500.0,0.00012999,2]
[338529675,1726721386334,-500.0,0.00012999,2]
[338529676,1726721386357,-665.03,0.00012999,2]
[338529677,1726721386384,-500.0,0.00012999,2]
[338529678,1726721386410,-3190.95,0.00012999,2]
[338529679,1726721386433,-151.694579,0.00012999,2]
[338529680,1726721386457,-888.56,0.00012999,2]
[338529681,1726721386480,-1868.670075,0.00012999,2]
[338529682,1726721386502,-1868.670075,0.00012999,2]
[338529683,1726721386525,-192.988848,0.00012999,2]
[338529684,1726721386546,-1868.670075,0.00012999,2]
[338529685,1726721386567,-613.97,0.00012999,2]
[338529686,1726721386588,-1868.670075,0.00012999,2]
[338529687,1726721386609,-192.988848,0.00012999,2]
[338529688,1726721386635,-192.988848,0.00012999,2]
[338529689,1726721386656,-192.988848,0.00012999,2]
[338529690,1726721386677,-500.0,0.00012999,2]
[338529691,1726721386699,-1868.670075,0.00012999,2]
[338529692,1726721386720,-154.513514,0.00012999,2]
[338529693,1726721386741,-1868.670075,0.00012999,2]
[338529694,1726721386762,-192.988848,0.00012999,2]
[338529695,1726721386783,-1868.670075,0.00012999,2]
[338529696,1726721386803,-1868.670075,0.00012999,2]
[338529697,1726721386826,-500.0,0.00012999,2]
[338529698,1726721386847,-192.988848,0.00012999,2]
[338529699,1726721386869,-192.988848,0.00012999,2]
[338529700,1726721386891,-192.988848,0.00012999,2]
[338529701,1726721386914,-1798.32,0.00012999,2]
[338529702,1726721386936,-5065.25,0.00012999,2]
[338529703,1726721386957,-151.488396,0.00012999,2]
[338529704,1726721386979,-500.0,0.00012999,2]
[338529705,1726721387001,-4217.42,0.00012999,2]
[338529706,1726721387023,-1039.49,0.00012999,2]
[338529707,1726721387044,-2936.3,0.00012999,2]
[338529708,1726721387065,-500.0,0.00012999,2]
[338529709,1726721387086,-997.99,0.00012999,2]
[338529710,1726721387108,-500.0,0.00012999,2]
[338529711,1726721387129,-151.0,0.00012999,2]
[338529712,1726721387151,-151.0,0.00012999,2]
[338529713,1726721387174,-151.0,0.00012999,2]
[338529714,1726721387196,-151.0,0.00012999,2]
[338529715,1726721387217,-500.0,0.00012999,2]
[338529716,1726721387237,-1100.68,0.00012999,2]
[338529717,1726721387259,-1014.64,0.00012999,2]
[338529718,1726721387280,-278.20851,0.00012999,2]
[338529719,1726721387300,-1143.42,0.00012999,2]
[338529720,1726721387320,-594.3,0.00012999,2]
[338529721,1726721387340,-858.43,0.00012999,2]
[338529722,1726721387362,-295.039066,0.00012999,2]
[338529723,1726721387383,-295.039066,0.00012999,2]
[338529724,1726721387403,-3070.41,0.00012999,2]
[338529725,1726721387424,-295.039066,0.00012999,2]
[338529726,1726721387445,-5875.9,0.00012999,2]
[338529727,1726721387465,-295.039066,0.00012999,2]
[338529728,1726721387485,-295.039066,0.00012999,2]
[338529729,1726721387506,-295.039066,0.00012999,2]
[338529730,1726721387527,-957.37,0.00012999,2]
[338529731,1726721387547,-295.039066,0.00012999,2]
[338529732,1726721387567,-295.039066,0.00012999,2]
[338529733,1726721387587,-500.0,0.00012999,2]
[338529734,1726721387607,-500.0,0.00012999,2]
[338529735,1726721387627,-500.0,0.00012999,2]
[338529736,1726721387647,-1960.85,0.00012999,2]
[338529737,1726721387669,-2478.33,0.00012999,2]
[338529738,1726721387689,-1133.03,0.00012999,2]
[338529739,1726721387712,-529.43,0.00012999,2]
[338529740,1726721387734,-1794.97,0.00012999,2]
[338529741,1726721387755,-500.0,0.00012999,2]
[338529742,1726721387776,-500.0,0.00012999,2]
[338529743,1726721387797,-1731.86,0.00012999,2]
[338529744,1726721387819,-600.01,0.00012999,2]
[338529745,1726721387841,-754.81,0.00012999,2]
[338529746,1726721387862,-531.92,0.00012999,2]
[338529747,1726721387883,-500.0,0.00012999,2]
[338529748,1726721387904,-1701.62,0.00012999,2]
[338529749,1726721387930,-500.0,0.00012999,2]
[338529750,1726721387951,-454.071406,0.00012999,2]
[338529751,1726721387973,-454.071406,0.00012999,2]
[338529752,1726721387994,-454.071406,0.00012999,2]
[338529753,1726721388015,-454.071406,0.00012999,2]
[338529754,1726721388036,-454.071406,0.00012999,2]
[338529755,1726721388058,-454.071406,0.00012999,2]
[338529756,1726721388080,-454.071406,0.00012999,2]
[338529757,1726721388102,-454.071406,0.00012999,2]
[338529758,1726721388123,-500.0,0.00012999,2]
[338529759,1726721388144,-861.22,0.00012999,2]
[338529760,1726721388167,-454.071406,0.00012999,2]
[338529761,1726721388189,-454.071406,0.00012999,2]
[338529762,1726721388212,-500.0,0.00012999,2]
[338529763,1726721388233,-647.3,0.00012999,2]
[338529764,1726721388255,-1132.4,0.00012999,2]
[338529765,1726721388277,-151.0,0.00012999,2]
[338529766,1726721388298,-500.0,0.00012999,2]
[338529767,1726721388320,-500.0,0.00012999,2]
[338529768,1726721388343,-3184.39,0.00012999,2]
[338529769,1726721388365,-1351.79,0.00012999,2]
[338529770,1726721388388,-1508.74,0.00012999,2]
[338529771,1726721388411,-527.284761,0.00012999,2]
[338529772,1726721388433,-500.0,0.00012999,2]
[338529773,1726721388455,-527.284761,0.00012999,2]
[338529774,1726721388477,-527.284761,0.00012999,2]
[338529775,1726721388498,-527.284761,0.00012999,2]
[338529776,1726721388519,-1087.97,0.00012999,2]
[338529777,1726721388541,-527.284761,0.00012999,2]
[338529778,1726721388796,-500.0,0.00012999,2]
[338529779,1726721388832,-3249.66,0.00012999,2]
[338529780,1726721388855,-527.284761,0.00012999,2]
[338529781,1726721388877,-856.38,0.00012999,2]
[338529782,1726721388900,-527.284761,0.00012999,2]
[338529783,1726721388922,-527.284761,0.00012999,2]
[338529784,1726721388947,-527.284761,0.00012999,2]
[338529785,1726721388968,-527.284761,0.00012999,2]
[338529786,1726721388990,-9832.47,0.00012999,2]
[338529787,1726721389011,-678.37,0.00012999,2]
[338529788,1726721389031,-500.0,0.00012999,2]
[338529789,1726721389052,-1823.36,0.00012999,2]
[338529790,1726721389074,-500.0,0.00012999,2]
[338529791,1726721389096,-929.22,0.00012999,2]
[338529792,1726721389118,-151.0,0.00012999,2]
[338529793,1726721389139,-151.0,0.00012999,2]
[338529794,1726721389160,-151.0,0.00012999,2]
[338529795,1726721389182,-151.0,0.00012999,2]
[338529796,1726721389205,-747.18,0.00012999,2]
[338529797,1726721389225,-151.0,0.00012999,2]
[338529798,1726721389246,-500.0,0.00012999,2]
[338529799,1726721389267,-2098.69,0.00012999,2]
[338529800,1726721389288,-500.0,0.00012999,2]
[338529801,1726721389309,-151.0,0.00012999,2]
[338529802,1726721389330,-151.0,0.00012999,2]
[338529803,1726721389351,-151.0,0.00012999,2]
[338529804,1726721389373,-151.0,0.00012999,2]
[338529805,1726721389394,-158.737732,0.00012999,2]
[338529806,1726721389416,-580.79,0.00012999,2]
[338529807,1726721389437,-876.33,0.00012999,2]
[338529808,1726721389458,-675.87,0.00012999,2]
[338529809,1726721389479,-849.52,0.00012999,2]
[338529810,1726721389500,-3656.99,0.00012999,2]
[338529811,1726721389520,-726.23,0.00012999,2]
[338529812,1726721389542,-500.0,0.00012999,2]
[338529813,1726721389562,-3894.5,0.00012999,2]
[338529814,1726721389583,-768.99,0.00012999,2]
[338529815,1726721389604,-3766.83,0.00012999,2]
[338529816,1726721389625,-500.0,0.00012999,2]
[338529817,1726721389646,-514.81,0.00012999,2]
[338529818,1726721389669,-151.0,0.00012999,2]
[338529819,1726721389690,-1678.77,0.00012999,2]
[338529820,1726721389713,-151.0,0.00012999,2]
[338529821,1726721389734,-151.0,0.00012999,2]
[338529822,1726721389755,-3588.29,0.00012999,2]
[338529823,1726721389776,-151.571747,0.00012999,2]
[338529824,1726721389798,-561.88,0.00012999,2]
[338529825,1726721389823,-3612.63,0.00012999,2]
[338529826,1726721389844,-500.0,0.00012999,2]
[338529827,1726721389864,-500.0,0.00012999,2]
[338529828,1726721389886,-1165.21,0.00012999,2]
[338529829,1726721389911,-151.49935,0.00012999,2]
[338529830,1726721389933,-1886.85,0.00012999,2]
[338529831,1726721389955,-2851.24,0.00012999,2]
[338529832,1726721389979,-5211.22,0.00012999,2]
[338529833,1726721390000,-2563.28,0.00012999,2]
[338529834,1726721390022,-500.0,0.00012999,2]
[338529835,1726721390044,-583.16431426,0.00012999,2]
[338529836,1726721390066,-169.03845001,0.00012999,2]
[338529837,1726721390088,-628.73,0.00012999,2]
[338529838,1726721390109,-535.641178,0.00012999,2]
[338529839,1726721390131,-747.64,0.00012999,2]
[338529840,1726721390152,-535.641178,0.00012999,2]
[338529841,1726721390176,-535.641178,0.00012999,2]
[338529842,1726721390197,-535.641178,0.00012999,2]
[338529843,1726721390219,-535.641178,0.00012999,2]
[338529844,1726721390241,-1122.98,0.00012999,2]
[338529845,1726721390262,-505.219601,0.00012999,2]
[338529846,1726721390283,-505.219601,0.00012999,2]
[338529847,1726721390303,-505.219601,0.00012999,2]
[338529848,1726721390323,-505.219601,0.00012999,2]
[338529849,1726721390345,-535.641178,0.00012999,2]
[338529850,1726721390367,-505.219601,0.00012999,2]
[338529851,1726721390391,-535.641178,0.00012999,2]
[338529852,1726721390413,-510.27,0.00012999,2]
[338529853,1726721390433,-535.641178,0.00012999,2]
[338529854,1726721390455,-535.641178,0.00012999,2]
[338529855,1726721390475,-151.0,0.00012999,2]
[338529856,1726721390496,-535.641178,0.00012999,2]
[338529857,1726721390518,-151.0,0.00012999,2]
[338529858,1726721390538,-4847.2,0.00012999,2]
[338529859,1726721390558,-151.0,0.00012999,2]
[338529860,1726721390579,-857.76,0.00012999,2]
[338529861,1726721390599,-1711.51,0.00012999,2]
[338529862,1726721390620,-505.219601,0.00012999,2]
[338529863,1726721390641,-505.219601,0.00012999,2]
[338529864,1726721390661,-151.0,0.00012999,2]
[338529865,1726721390685,-505.219601,0.00012999,2]
[338529866,1726721390706,-151.0,0.00012999,2]
[338529867,1726721390727,-505.219601,0.00012999,2]
[338529868,1726721390748,-505.219601,0.00012999,2]
[338529869,1726721390769,-151.0,0.00012999,2]
[338529870,1726721390794,-151.0,0.00012999,2]
[338529871,1726721390818,-151.0,0.00012999,2]
[338529872,1726721390840,-500.0,0.00012999,2]
[338529873,1726721390864,-151.0,0.00012999,2]
[338529874,1726721390886,-151.0,0.00012999,2]
[338529875,1726721390912,-273.396864,0.00012999,2]
[338529876,1726721390943,-273.396864,0.00012999,2]
[338529877,1726721390964,-273.396864,0.00012999,2]
[338529878,1726721390986,-151.0,0.00012999,2]
[338529879,1726721391008,-273.396864,0.00012999,2]
[338529880,1726721391029,-1224.38,0.00012999,2]
[338529881,1726721391051,-273.396864,0.00012999,2]
[338529882,1726721391073,-151.0,0.00012999,2]
[338529883,1726721391094,-151.0,0.00012999,2]
[338529884,1726721391116,-179.402009,0.00012999,2]
[338529885,1726721391137,-5936.67,0.00012999,2]
[338529886,1726721391159,-273.396864,0.00012999,2]
[338529887,1726721391186,-273.396864,0.00012999,2]
[338529888,1726721391209,-273.396864,0.00012999,2]
[338529889,1726721391231,-500.0,0.00012999,2]
[338529890,1726721391253,-273.396864,0.00012999,2]
[338529891,1726721391275,-273.396864,0.00012999,2]
[338529892,1726721391298,-729.36,0.00012999,2]
[338529893,1726721391320,-1526.2,0.00012999,2]
[338529894,1726721391342,-2012.25,0.00012999,2]
[338529895,1726721391363,-500.0,0.00012999,2]
[338529896,1726721391385,-2702.45,0.00012999,2]
[338529897,1726721391407,-500.0,0.00012999,2]
[338529898,1726721391433,-500.0,0.00012999,2]
[338529899,1726721391454,-500.0,0.00012999,2]
[338529900,1726721391476,-500.0,0.00012999,2]
[338529901,1726721391498,-595.84,0.00012999,2]
[338529902,1726721391522,-151.0,0.00012999,2]
[338529903,1726721391544,-151.0,0.00012999,2]
[338529904,1726721391565,-2589.63,0.00012999,2]
[338529905,1726721391588,-500.0,0.00012999,2]
[338529906,1726721391610,-537.13,0.00012999,2]
[338529907,1726721391632,-151.0,0.00012999,2]
[338529908,1726721391653,-151.0,0.00012999,2]
[338529909,1726721391677,-151.0,0.00012999,2]
[338529910,1726721391699,-151.0,0.00012999,2]
[338529911,1726721391721,-500.0,0.00012999,2]
[338529912,1726721391744,-151.0,0.00012999,2]
[338529913,1726721391766,-1383.21,0.00012999,2]
[338529914,1726721391789,-500.0,0.00012999,2]
[338529915,1726721391811,-500.0,0.00012999,2]
[338529916,1726721391838,-1474.98,0.00012999,2]
[338529917,1726721391859,-685.0,0.00013,2]
[338529918,1726721391885,-9378.78412302,0.00013,2]
[338529919,1726721391910,-200.1,0.00013,2]
[338529920,1726721391938,-2286566.4375753,0.00013,2]
[338529921,1726721391960,-1615677.60355328,0.00013,2]
[338529925,1726721418337,312.54,0.00012176,2]
[338529926,1726721426812,162.77,0.00010959,2]
[338529931,1726721432344,-328.09382588,0.00012799,2]
[338529932,1726721432355,-500.0,0.00012898,2]
[338529933,1726721432364,-1307.0,0.00012898,2]
[338529934,1726721432375,-4721.83,0.00012898,2]
[338529935,1726721432386,-500.0,0.00012898,2]
[338529936,1726721432397,-1100.01,0.00012898,2]
[338529937,1726721432407,-1156.05,0.00012898,2]
[338529938,1726721432416,-3682.71,0.00012898,2]
[338529939,1726721432425,-1544.08,0.00012898,2]
[338529940,1726721432434,-308.36970857,0.00012898,2]
[338529941,1726721432443,-2120.78,0.00012898,2]
[338529942,1726721432452,-500.0,0.00012898,2]
[338529943,1726721432461,-920.53,0.00012898,2]
[338529944,1726721432470,-1663.81,0.00012898,2]
[338529945,1726721432479,-1016.51,0.00012898,2]
[338529946,1726721432489,-407.14044574,0.00012899,2]
[338529947,1726721432498,-4865.01,0.00012899,2]
[338529948,1726721432507,-500.0,0.00012899,2]
[338529949,1726721432516,-500.0,0.00012899,2]
[338529950,1726721432525,-500.0,0.00012899,2]
[338529951,1726721432534,-500.0,0.00012899,2]
[338529952,1726721432543,-500.0,0.00012899,2]
[338529953,1726721432553,-396.92,0.00012899,2]
[338529954,1726721432562,-500.0,0.00012899,2]
[338529955,1726721432572,-3909.77,0.00012899,2]
[338529956,1726721432582,-500.0,0.00012899,2]
[338529957,1726721432593,-500.0,0.00012899,2]
[338529958,1726721432602,-152.34,0.0001299,2]
[338529959,1726721432612,-152.34,0.0001299,2]
[338529960,1726721432623,-152.34,0.00012995,2]
[338529961,1726721432634,-8367.19,0.00012996,2]
[338529962,1726721432644,-500.0,0.00012996,2]
[338529963,1726721432654,-500.0,0.00012996,2]
[338529964,1726721432664,-300.0,0.00012997,2]
[338529965,1726721432674,-151.0,0.00012998,2]
[338529966,1726721432683,-151.0,0.00012998,2]
[338529967,1726721432693,-154.304103,0.00012998,2]
[338529968,1726721432704,-151.0,0.00012998,2]
[338529969,1726721432714,-151.0,0.00012998,2]
[338529970,1726721432724,-151.67358,0.00012998,2]
[338529971,1726721432734,-151.352061,0.00012998,2]
[338529972,1726721432744,-2927.56,0.00012998,2]
[338529973,1726721432753,-500.0,0.00012998,2]
[338529974,1726721432763,-3222.22,0.00012998,2]
[338529975,1726721432772,-500.0,0.00012998,2]
[338529976,1726721432781,-500.0,0.00012998,2]
[338529977,1726721432791,-500.0,0.00012998,2]
[338529978,1726721432801,-1071.07268472,0.00012998,2]
[338529979,1726721432815,-833.79793316,0.00012998,2]
[338529980,1726721432841,-7962.75938212,0.00012998,2]
[338529981,1726721432851,-500.0,0.00012998,2]
[338529982,1726721432860,-1000.0,0.00012998,2]
[338529983,1726721432870,-500.0,0.00012998,2]
[338529984,1726721432879,-500.0,0.00012998,2]
[338529985,1726721432889,-3670.49,0.00012998,2]
[338529986,1726721432898,-151.0,0.00012999,2]
[338529987,1726721432910,-151.0,0.00012999,2]
[338529988,1726721432920,-151.0,0.00012999,2]
[338529989,1726721432930,-153.270593,0.00012999,2]
[338529990,1726721432939,-1873.98,0.00012999,2]
[338529991,1726721432948,-151.0,0.00012999,2]
[338529992,1726721432958,-153.329019,0.00012999,2]
[338529993,1726721432967,-1686.47,0.00012999,2]
[338529994,1726721432977,-500.0,0.00012999,2]
[338529995,1726721432986,-500.0,0.00012999,2]
[338529996,1726721432996,-620.39,0.00012999,2]
[338529997,1726721433005,-1845.18,0.00012999,2]
[338529998,1726721433015,-791.54,0.00012999,2]
[338529999,1726721433025,-669.2,0.00012999,2]
[338530000,1726721433034,-1162.75,0.00012999,2]
[338530001,1726721433043,-500.0,0.00012999,2]
[338530002,1726721433053,-500.0,0.00012999,2]
[338530003,1726721433062,-500.0,0.00012999,2]
[338530004,1726721433072,-500.0,0.00012999,2]
[338530005,1726721433081,-1305.31,0.00012999,2]
[338530006,1726721433091,-1911.46,0.00012999,2]
[338530007,1726721433100,-500.0,0.00012999,2]
[338530008,1726721433110,-500.0,0.00012999,2]
[338530009,1726721433119,-500.0,0.00012999,2]
[338530010,1726721433129,-500.0,0.00012999,2]
[338530011,1726721433138,-500.0,0.00012999,2]
[338530012,1726721433148,-500.0,0.00012999,2]
[338530013,1726721433157,-1733.02,0.00012999,2]
[338530014,1726721433167,-614.0,0.00013,2]
[338530015,1726721433178,-419825.47084258,0.00013,2]
[338530016,1726721433195,-5842.68057604,0.00013,2]
[338530017,1726721433209,-5472.43112034,0.00013,2]
[338530018,1726721434901,-999.81446916,0.00012998,2]
[338530019,1726721435223,840.0,0.00012148,2]
[338530020,1726721437724,505.92883451,0.00011264,2]
[338530026,1726721438565,-2108.0,0.00012898,2]
[338530027,1726721438574,-500.0,0.00012899,2]
[338530028,1726721438584,-500.0,0.00012899,2]
[338530029,1726721438594,-500.0,0.00012899,2]
[338530030,1726721438603,-500.0,0.00012899,2]
[338530031,1726721438613,-500.0,0.00012973,2]
[338530032,1726721438622,-2218.43553084,0.00012998,2]
[338530033,1726721438631,-2599.93,0.00012998,2]
[338530035,1726721438641,-500.0,0.00012999,2]
[338530036,1726721438650,-625.71,0.00012999,2]
[338530037,1726721438660,-500.0,0.00012999,2]
[338530038,1726721438670,-1925.43,0.00012999,2]
[338530039,1726721438679,-500.0,0.00012999,2]
[338530040,1726721438688,-241344.97012989,0.00013,2]
[338530041,1726721438698,-227.55,0.00013,2]
[338530042,1726721438708,-317.96350894,0.00013,5]
[338530043,1726721438718,-556487.14087581,0.00013,2]
[338530044,1726721438727,-2000.0,0.00013,2]
[338530045,1726721438737,-200.0,0.00013,2]
[338530046,1726721438747,-151.0,0.00013,2]
[338530047,1726721438756,-151.0,0.00013,2]
[338530048,1726721438765,-151.0,0.00013,2]
[338530049,1726721438775,-151.0,0.00013,2]
[338530050,1726721438784,-151.0,0.00013,2]
[338530051,1726721438794,-151.0,0.00013,2]
[338530052,1726721438804,-151.0,0.00013,2]
[338530053,1726721438814,-151.0,0.00013,2]
[338530054,1726721438823,-151.0,0.00013,2]
[338530055,1726721438839,-151.0,0.00013,2]
[338530056,1726721438848,-151.0,0.00013,2]
[338530057,1726721438858,-151.0,0.00013,2]
[338530058,1726721438868,-151.780054,0.00013,2]
[338530059,1726721438879,-151.0,0.00013,2]
[338530060,1726721438888,-151.0,0.00013,2]
[338530061,1726721438898,-152.129625,0.00013,2]
[338530062,1726721438910,-398.937309,0.00013,2]
[338530063,1726721438920,-398.937309,0.00013,2]
[338530064,1726721438930,-398.937309,0.00013,2]
[338530065,1726721438940,-398.937309,0.00013,2]
[338530066,1726721438949,-398.937309,0.00013,2]
[338530067,1726721438961,-398.937309,0.00013,2]
[338530068,1726721438971,-153.212972,0.00013,2]
[338530069,1726721438981,-151.0,0.00013,2]
[338530070,1726721438991,-151.0,0.00013,2]
[338530071,1726721439001,-151.0,0.00013,2]
[338530072,1726721439011,-151.0,0.00013,2]
[338530073,1726721439021,-151.0,0.00013,2]
[338530074,1726721439031,-151.0,0.00013,2]
[338530075,1726721439042,-151.0,0.00013,2]
[338530076,1726721439052,-151.0,0.00013,2]
[338530077,1726721439062,-151.0,0.00013,2]
[338530078,1726721439072,-218.596602,0.00013,2]
[338530079,1726721439082,-151.0,0.00013,2]
[338530080,1726721439092,-151.0,0.00013,2]
[338530081,1726721439102,-151.0,0.00013,2]
[338530082,1726721439111,-151.0,0.00013,2]
[338530083,1726721439121,-178.944624,0.00013,2]
[338530084,1726721439131,-355.115025,0.00013,2]
[338530085,1726721439143,-355.115025,0.00013,2]
[338530086,1726721439152,-355.115025,0.00013,2]
[338530087,1726721439161,-355.115025,0.00013,2]
[338530088,1726721439171,-355.115025,0.00013,2]
[338530089,1726721439180,-355.115025,0.00013,2]
[338530090,1726721439190,-151.0,0.00013,2]
[338530091,1726721439199,-151.0,0.00013,2]
[338530092,1726721439210,-197.295799,0.00013,2]
[338530093,1726721439219,-708.794204,0.00013,2]
[338530094,1726721439228,-708.794204,0.00013,2]
[338530095,1726721439238,-708.794204,0.00013,2]
[338530096,1726721439247,-708.794204,0.00013,2]
[338530097,1726721439256,-708.794204,0.00013,2]
[338530098,1726721439266,-708.794204,0.00013,2]
[338530099,1726721439275,-200.1,0.00013,2]
[338530100,1726721439285,-151.0,0.00013,2]
[338530101,1726721439294,-151.0,0.00013,2]
[338530102,1726721439304,-151.0,0.00013,2]
[338530103,1726721439313,-208.8104,0.00013,2]
[338530104,1726721439322,-208.8104,0.00013,2]
[338530105,1726721439331,-208.8104,0.00013,2]
[338530106,1726721439341,-208.8104,0.00013,2]
[338530107,1726721439350,-208.8104,0.00013,2]
[338530108,1726721439359,-208.8104,0.00013,2]
[338530109,1726721439369,-576.19440787,0.00013,2]
[338530110,1726721439378,-206.773716,0.00013,2]
[338530111,1726721439387,-200.17791992,0.00013,2]
[338530112,1726721439396,-151.0,0.00013,2]
[338530113,1726721439406,-171.67218,0.00013,2]
[338530114,1726721439415,-1495.04849,0.00013,2]
[338530115,1726721439424,-1495.04849,0.00013,2]
[338530116,1726721439434,-1495.04849,0.00013,2]
[338530117,1726721439443,-1495.04849,0.00013,2]
[338530118,1726721439452,-1495.04849,0.00013,2]
[338530119,1726721439461,-1495.04849,0.00013,2]
[338530120,1726721439471,-162.593825,0.00013,2]
[338530122,1726721439480,-210.981478,0.00013,2]
[338530124,1726721439490,-210.981478,0.00013,2]
[338530127,1726721439499,-210.981478,0.00013,2]
[338530128,1726721439508,-210.981478,0.00013,2]
[338530130,1726721439518,-210.981478,0.00013,2]
[338530132,1726721439528,-210.981478,0.00013,2]
[338530134,1726721439537,-151.0,0.00013,2]
[338530136,1726721439547,-151.0,0.00013,2]
[338530138,1726721439556,-151.0,0.00013,2]
[338530140,1726721439566,-151.0,0.00013,2]